bitfinex-derivatives/quotes_SOLF0:USTF0_20251018
["timestamp","ask_amount","ask_price","bid_price","bid_amount"]
[1760788963883,2.73,185.97,185.95,1.82854649]
[1760788965385,2.73,185.97,185.94,4.8389]
[1760788965689,2.73,185.97,185.94,8.75744649]
[1760788966785,1.82854649,186.0,185.92,4.8394]
[1760788966980,2.87,185.98,185.93,1.82854649]
[1760788967188,2.87,185.96,185.93,3.91854649]
[1760788967487,9.55512292,185.95,185.93,3.91854649]
[1760788967681,2.87,185.96,185.93,2.09]
[1760788967885,9.55715864,185.95,185.93,3.91854649]
[1760788968180,2.87,185.96,185.93,3.91854649]
[1760788968396,9.55673479,185.95,185.93,3.91854649]
[1760788968588,2.87,185.96,185.93,3.91854649]
[1760788968787,9.55673834,185.95,185.93,3.91854649]
[1760788968989,2.87,185.96,185.93,3.91854649]
[1760788969185,9.55673789,185.95,185.93,8.75764649]
[1760788969489,2.87,185.96,185.93,8.75764649]
[1760788969987,5.23462089,185.95,185.93,8.75764649]
[1760788970184,2.87,185.96,185.93,8.75764649]
[1760788970381,5.23457646,185.95,185.93,8.75764649]
[1760788970590,2.87,185.96,185.93,8.75764649]
[1760788970790,5.23457675,185.95,185.93,8.75764649]
[1760788970990,2.87,185.96,185.93,8.75764649]
[1760788971189,5.23457675,185.95,185.93,8.75764649]
[1760788971390,2.87,185.96,185.93,8.75764649]
[1760788971589,5.23505465,185.95,185.93,8.75764649]
[1760788971790,2.87,185.96,185.93,8.75764649]
[1760788971991,5.23492022,185.95,185.93,8.75764649]
[1760788972295,2.87,185.96,185.93,8.75764649]
[1760788972492,9.55801055,185.95,185.93,8.75764649]
[1760788972684,2.87,185.96,185.93,8.75764649]
[1760788972888,9.55801327,185.95,185.93,8.75764649]
[1760788973089,2.87,185.96,185.93,8.75764649]
[1760788973289,9.55909762,185.95,185.93,8.75764649]
[1760788973484,2.87,185.96,185.93,8.75764649]
[1760788973691,9.56043159,185.95,185.93,8.75764649]
[1760788973889,2.87,185.96,185.93,8.75764649]
[1760788974092,9.56043001,185.95,185.93,8.75764649]
[1760788974390,6.81734359,186.0,185.93,8.75764649]
[1760788974391,5.23896025,185.94,185.93,1.82854649]
[1760788975289,5.23896025,185.94,185.91,8.75814649]
[1760788975290,8.10896025,185.94,185.91,8.75814649]
[1760788975497,2.87,185.94,185.91,8.75814649]
[1760788975790,4.9887971,185.98,185.91,8.75814649]
[1760788975995,9.56749608,185.97,185.91,8.75814649]
[1760788976192,9.56749608,185.96,185.91,8.75814649]
[1760788976394,2.87,185.94,185.91,8.75814649]
[1760788976592,5.2413028,185.93,185.91,8.75814649]
[1760788976793,2.87,185.94,185.91,8.75814649]
[1760788976989,4.9887971,185.98,185.93,1.82854649]
[1760788977195,12.43878115,185.97,185.93,3.91854649]
[1760788977389,9.56878115,185.96,185.93,3.91854649]
[1760788977590,9.56878115,185.95,185.93,3.91854649]
[1760788977796,5.2417158,185.94,185.93,3.91854649]
[1760788977997,5.2417158,185.94,185.93,8.75754649]
[1760788978297,9.57125635,185.94,185.93,8.75754649]
[1760788978602,5.2417158,185.94,185.93,8.75754649]
[1760788979397,2.87,185.99,185.96,2.09]
[1760788979596,9.57457983,185.98,185.96,2.09]
[1760788979792,2.87,185.99,185.95,4.8385]
[1760788979793,9.57457983,185.97,185.95,4.8385]
[1760788979984,9.57457983,185.96,185.95,4.8385]
[1760788981001,12.44457983,185.96,185.95,4.8385]
[1760788981897,2.87,185.95,185.93,4.8392]
[1760788982103,12.44457983,185.94,185.93,4.8392]
[1760788983307,7.2014612,185.94,185.93,4.8392]
[1760788983507,12.44859103,185.94,185.93,4.8392]
[1760788984509,7.2014612,185.94,185.93,4.8392]
[1760788984703,12.41122798,185.94,185.93,4.8392]
[1760788985303,12.41090142,185.94,185.93,4.8392]
[1760788987214,2.65,185.93,185.9,4.8398]
[1760788987414,12.19090142,185.92,185.9,4.8398]
[1760788987614,9.54090142,185.91,185.9,4.8398]
[1760788988209,5.20976678,185.91,185.9,4.8398]
[1760788988610,9.54037937,185.91,185.9,4.8398]
[1760788989211,5.20976678,185.91,185.9,4.8398]
[1760788989408,7.85976678,185.91,185.9,4.8398]
[1760788989611,12.19021645,185.91,185.9,4.8398]
[1760788989814,2.65,185.91,185.9,4.8398]
[1760788990118,5.02292219,185.96,185.9,4.8398]
[1760788990119,2.65,185.95,185.9,4.8398]
[1760788990311,2.65,185.93,185.9,4.8398]
[1760788990606,9.53830335,185.92,185.91,2.09]
[1760788990807,2.65,185.96,185.92,4.8394]
[1760788991012,12.18776734,185.95,185.92,4.8394]
[1760788991207,9.53776734,185.94,185.92,4.8394]
[1760788991409,9.53776734,185.93,185.92,4.8394]
[1760788991609,9.53776734,185.93,185.92,6.9294]
[1760788991809,2.65,185.98,185.92,6.9294]
[1760788991810,7.67292219,185.98,185.92,6.9294]
[1760788992010,2.65,185.96,185.93,4.8391]
[1760788992212,9.53620126,185.95,185.94,2.09]
[1760788993214,9.53596905,185.95,185.94,2.09]
[1760788993616,9.53596905,185.95,185.93,4.8391]
[1760788993811,5.20686708,185.94,185.93,4.8391]
[1760788995116,7.85686708,185.94,185.93,4.8391]
[1760788995417,12.19525829,185.94,185.93,4.8391]
[1760788996717,2.74,185.93,185.89,7.70087149]
[1760788996907,2.74,185.91,185.89,7.70087149]
[1760788998020,2.74,185.91,185.89,4.8401]
[1760788998209,9.86152219,185.96,185.9,4.8399]
[1760788998413,9.54780883,185.95,185.9,6.9299]
[1760788998614,2.74,185.93,185.9,4.8399]
[1760788998915,9.54780883,185.92,185.9,4.8399]
[1760788999221,12.2874606,185.91,185.9,4.8399]
[1760788999518,12.2874606,185.91,185.88,46.83]
[1760788999716,2.74,185.91,185.88,46.83]
[1760789000315,2.74,185.91,185.89,2.09]
[1760789000513,2.74,185.89,185.8,2.09]
[1760789000718,9.54808192,185.88,185.81,2.86077149]
[1760789001012,9.54808192,185.87,185.81,2.86077149]
[1760789001213,12.28808192,185.86,185.82,2.09]
[1760789001517,9.54808192,185.85,185.82,2.09]
[1760789001712,2.74,185.86,185.82,2.09]
[1760789001913,9.54568216,185.85,185.82,2.09]
[1760789002119,2.74,185.83,185.81,4.8423]
[1760789002522,2.74,185.83,185.8,44.74]
[1760789002915,2.74,185.83,185.8,46.83]
[1760789003318,12.2750339,185.82,185.78,2.09]
[1760789003515,2.74,185.85,185.79,2.09]
[1760789003718,9.53523847,185.84,185.78,2.86077149]
[1760789003922,9.53523847,185.83,185.82,2.09]
[1760789004121,2.74,185.85,185.82,2.09]
[1760789004314,9.52996625,185.84,185.82,2.09]
[1760789004516,2.74,185.85,185.82,2.09]
[1760789004827,9.5301029,185.84,185.82,2.09]
[1760789005021,2.74,185.85,185.82,6.9319]
[1760789005326,9.52827514,185.84,185.82,4.8419]
[1760789005622,2.74,185.85,185.82,4.8419]
[1760789005823,9.52670771,185.84,185.82,4.8419]
[1760789006025,2.74,185.85,185.82,4.8419]
[1760789008324,2.74,185.89,185.82,6.9319]
[1760789008530,9.51693499,185.88,185.82,6.9319]
[1760789008719,12.25693499,185.87,185.83,2.09]
[1760789008922,9.51693499,185.86,185.83,2.09]
[1760789009126,2.74,185.87,185.83,2.09]
[1760789009327,5.19118536,185.86,185.84,2.09]
[1760789009524,2.74,185.87,185.84,2.09]
[1760789009728,5.02292219,185.91,185.83,4.8416]
[1760789009927,7.06415991,185.9,185.83,6.9316]
[1760789010128,9.51533782,185.89,185.83,6.9316]
[1760789010326,7.06415991,185.88,185.83,4.8416]
[1760789010528,2.74,185.88,185.83,4.8416]
[1760789010829,5.19113903,185.87,185.84,2.09]
[1760789011032,2.74,185.88,185.84,2.09]
[1760789011227,5.19126816,185.87,185.84,2.09]
[1760789011423,2.74,185.88,185.84,2.09]
[1760789012028,2.74,185.88,185.84,6.9314]
[1760789013226,2.74,185.91,185.85,2.09]
[1760789013428,9.5124945,185.9,185.84,4.95077149]
[1760789013629,2.74,185.9,185.84,4.95077149]
[1760789014032,2.74,185.93,185.86,4.8409]
[1760789014329,9.45874143,185.92,185.86,4.8409]
[1760789014535,2.74,185.9,185.86,4.8409]
[1760789014734,2.74,185.93,185.86,4.8409]
[1760789014936,9.45857611,185.92,185.86,4.8409]
[1760789015134,2.74,185.9,185.86,6.9309]
[1760789015336,2.74,185.93,185.86,6.9309]
[1760789015536,12.19879372,185.92,185.86,6.9309]
[1760789015839,12.19879372,185.91,185.87,2.09]
[1760789016037,12.19879372,185.9,185.87,2.09]
[1760789016237,2.74,185.9,185.87,2.09]
[1760789016434,2.74,185.93,185.88,2.09]
[1760789016634,2.74,185.91,185.88,2.09]
[1760789017028,2.74,185.94,185.88,2.09]
[1760789017337,2.74,185.92,185.85,6.9312]
[1760789017534,9.45867973,185.91,185.85,6.9312]
[1760789017737,2.74,185.89,185.85,6.9312]
[1760789019338,2.74,185.89,185.86,6.9308]
[1760789020430,7.76292219,185.93,185.84,7.70227149]
[1760789020633,9.46203427,185.92,185.84,7.70227149]
[1760789020843,12.20203427,185.91,185.84,7.70227149]
[1760789021035,9.46203427,185.9,185.84,7.70227149]
[1760789021235,9.46203427,185.89,185.84,7.70227149]
[1760789021438,2.74,185.88,185.84,9.79227149]
[1760789022439,9.86232219,185.93,185.84,9.79227149]
[1760789022632,14.30271409,185.92,185.84,4.8415]
[1760789022837,9.46311409,185.91,185.84,4.8415]
[1760789023033,9.46311409,185.9,185.84,4.8415]
[1760789023241,4.8396,185.92,185.84,4.8415]
[1760789023242,9.46311409,185.89,185.84,4.8415]
[1760789023442,2.74,185.91,185.84,4.8415]
[1760789023640,12.20411853,185.9,185.84,4.8415]
[1760789023841,9.46411853,185.89,185.84,4.8415]
[1760789024142,2.74,185.91,185.84,4.8415]
[1760789024331,2.74,185.89,185.84,4.8415]
[1760789024531,4.33621252,185.88,185.84,4.8415]
[1760789024738,2.74,185.91,185.84,4.8415]
[1760789024942,2.74,185.89,185.84,4.8415]
[1760789025131,2.74,185.87,185.84,4.8415]
[1760789025331,7.5799,185.91,185.84,4.8415]
[1760789025633,2.74,185.89,185.84,4.8415]
[1760789025938,2.74,185.87,185.84,4.8415]
[1760789026339,9.47860009,185.86,185.84,4.8415]
[1760789026535,2.74,185.87,185.84,4.8415]
[1760789026845,9.47871958,185.86,185.84,4.8415]
[1760789027041,4.33765512,185.85,185.84,4.8415]
[1760789027438,2.77,185.84,185.82,22.542]
[1760789027744,2.77,185.84,185.82,4.842]
[1760789029041,2.77,185.87,185.82,4.842]
[1760789029235,9.48096371,185.86,185.83,2.09]
[1760789029434,9.48096371,185.85,185.82,4.842]
[1760789029739,2.77,185.87,185.83,2.09]
[1760789030047,9.48006573,185.86,185.83,2.09]
[1760789030240,9.48006573,185.85,185.83,2.09]
[1760789030441,2.77,185.87,185.83,2.09]
[1760789030644,9.48060894,185.86,185.83,2.09]
[1760789030847,4.33810797,185.85,185.82,4.842]
[1760789031040,2.77,185.87,185.83,2.09]
[1760789031344,9.48092787,185.86,185.84,2.09]
[1760789031539,4.33849935,185.85,185.84,2.09]
[1760789032836,5.02292219,185.9,185.85,4.8412]
[1760789033036,2.77,185.88,185.85,6.9312]
[1760789033241,9.4821295,185.87,185.85,6.9312]
[1760789033441,2.77,185.88,185.85,6.9312]
[1760789033643,9.48255357,185.87,185.85,6.9312]
[1760789033940,2.77,185.88,185.85,6.9312]
[1760789034146,9.48255357,185.87,185.85,6.9312]
[1760789034346,2.77,185.88,185.85,6.9312]
[1760789034547,9.4834485,185.87,185.85,6.9312]
[1760789034751,2.77,185.88,185.85,6.9312]
[1760789034946,9.4834485,185.87,185.85,6.9312]
[1760789035246,2.77,185.9,185.86,2.09]
[1760789035444,2.77,185.9,185.85,4.8412]
[1760789035445,9.48448592,185.89,185.85,4.8412]
[1760789035651,4.20281428,185.92,185.83,4.8418]
[1760789035652,2.77,185.87,185.83,4.8418]
[1760789035849,2.77,185.85,185.83,4.8418]
[1760789036842,5.02292219,185.89,185.83,4.8418]
[1760789037049,2.77,185.87,185.83,4.8418]
[1760789037250,2.77,185.85,185.83,4.8418]
[1760789037548,4.34106342,185.84,185.83,4.8418]
[1760789037952,9.48850777,185.84,185.83,4.8418]
[1760789038452,4.34106342,185.84,185.83,4.8418]
[1760789039251,9.49189627,185.84,185.83,4.8418]
[1760789040255,9.49189627,185.84,185.83,6.9318]
[1760789041048,5.15083285,185.84,185.83,6.9318]
[1760789041251,9.49977453,185.84,185.83,6.9318]
[1760789043653,9.49977453,185.84,185.82,2.09]
[1760789043860,9.49977453,185.83,185.82,2.09]
[1760789048255,2.77,185.87,185.81,1.83350012]
[1760789048451,2.77,185.87,185.85,2.09]
[1760789048452,4.35438396,185.86,185.85,2.09]
[1760789048856,4.35438396,185.86,185.84,1.83350012]
[1760789049057,2.78,185.87,185.84,1.83350012]
[1760789049356,2.78,185.87,185.84,3.92350012]
[1760789050059,2.78,185.87,185.85,4.8413]
[1760789050760,4.8398,185.91,185.85,4.8413]
[1760789050761,7.8001209,185.88,185.85,4.8413]
[1760789050953,5.0201209,185.89,185.86,6.9309]
[1760789051154,2.78,185.88,185.86,4.8409]
[1760789051557,2.78,185.87,185.86,4.8409]
[1760789051857,6.99806953,185.87,185.81,4.8422]
[1760789052160,2.78,185.84,185.81,2.09]
[1760789052355,5.02764651,185.86,185.83,2.09]
[1760789052561,2.78,185.85,185.83,2.09]
[1760789052755,2.78,185.85,185.82,1.83350012]
[1760789053259,2.78,185.85,185.82,3.92350012]
[1760789054054,5.02764651,185.86,185.82,8.76530012]
[1760789054254,2.78,185.84,185.82,8.76530012]
[1760789054551,2.78,185.84,185.82,6.9318]
[1760789055960,2.78,185.85,185.82,6.9318]
[1760789056861,5.02764651,185.86,185.82,4.8418]
[1760789057058,6.86114663,185.86,185.8,6.9325]
[1760789057261,2.76,185.84,185.8,6.9325]
[1760789057459,5.02764651,185.84,185.8,4.8425]
[1760789057663,6.86114663,185.84,185.8,4.8425]
[1760789057863,6.86114663,185.84,185.78,4.8431]
[1760789058262,2.76,185.83,185.78,4.8431]
[1760789058564,9.62114663,185.84,185.78,4.8431]
[1760789059359,5.02764651,185.82,185.77,3.0252199]
[1760789059664,1.83350012,185.8,185.75,44.72]
[1760789059861,2.76,185.79,185.75,44.72]
[1760789060263,9.43889613,185.78,185.75,46.81]
[1760789060568,4.33942341,185.77,185.75,46.81]
[1760789060861,2.76,185.79,185.75,46.81]
[1760789061066,9.43889614,185.78,185.75,46.81]
[1760789061259,4.33942341,185.77,185.75,46.81]
[1760789061565,2.76,185.77,185.75,44.72]
[1760789062365,1.83350012,185.82,185.76,2.09]
[1760789062566,9.43375049,185.81,185.76,1.83350012]
[1760789062761,9.43375049,185.8,185.76,1.83350012]
[1760789062957,4.33729024,185.79,185.77,2.09]
[1760789063162,7.78764651,185.83,185.77,2.09]
[1760789063464,12.19343609,185.82,185.78,6.9329]
[1760789063664,9.43343609,185.81,185.79,2.09]
[1760789063865,9.43343609,185.8,185.79,2.09]
[1760789064663,4.33706827,185.8,185.79,2.09]
[1760789064861,7.78764651,185.85,185.8,4.8424]
[1760789065064,9.43222608,185.84,185.81,2.09]
[1760789065264,9.43222608,185.83,185.81,2.09]
[1760789065474,9.43222608,185.82,185.81,2.09]
[1760789067271,9.43318669,185.82,185.81,2.09]
[1760789067467,4.33664284,185.82,185.81,2.09]
[1760789068272,9.43363899,185.82,185.81,2.09]
[1760789069076,5.02764651,185.87,185.81,2.09]
[1760789069373,5.09636854,185.86,185.81,2.09]
[1760789069572,5.09636854,185.85,185.81,2.09]
[1760789069780,6.854e-05,185.84,185.83,2.09]
[1760789070080,2.76,185.88,185.82,1.83350012]
[1760789070275,2.76,185.88,185.82,48.64350012]
[1760789070975,2.76,185.88,185.85,4.841]
[1760789071171,2.76,185.88,185.82,46.55350012]
[1760789071377,2.76,185.9,185.86,2.09]
[1760789071574,2.76,185.9,185.87,6.9306]
[1760789072775,6.86114663,185.93,185.87,4.8406]
[1760789073483,2.76,185.92,185.87,4.8406]
[1760789073783,6.86114663,185.93,185.87,4.8406]
[1760789074179,2.76,185.92,185.87,4.8406]
[1760789074382,6.86114663,185.93,185.87,4.8406]
[1760789074685,1.83350012,185.91,185.85,4.8412]
[1760789074987,2.76,185.9,185.85,4.8412]
[1760789075174,1.83350012,185.91,185.85,4.8412]
[1760789075175,4.59350012,185.91,185.85,4.8412]
[1760789075677,1.83350012,185.91,185.85,4.8412]
[1760789075882,2.76,185.88,185.83,4.8418]
[1760789076682,1.83350012,185.89,185.83,6.9318]
[1760789076877,4.59350012,185.89,185.83,6.9318]
[1760789080185,4.59350012,185.87,185.84,2.09]
[1760789081083,2.76,185.9,185.83,2.09]
[1760789081384,4.31298163,185.89,185.83,2.09]
[1760789081585,4.31298163,185.88,185.83,2.09]
[1760789081787,6.86114663,185.92,185.83,2.09]
[1760789081988,9.31746851,185.91,185.86,4.8409]
[1760789082184,9.31746851,185.9,185.87,2.09]
[1760789082383,4.31264063,185.89,185.87,2.09]
[1760789082591,4.31264063,185.88,185.87,2.09]
[1760789083188,2.76,185.9,185.87,2.09]
[1760789083381,4.31159711,185.89,185.87,2.09]
[1760789083586,2.76,185.9,185.87,2.09]
[1760789083886,4.31159711,185.89,185.87,2.09]
[1760789084184,4.59350012,185.9,185.87,2.09]
[1760789084489,4.31115039,185.89,185.87,2.09]
[1760789084689,4.59350012,185.9,185.87,2.09]
[1760789084892,4.31384621,185.89,185.87,2.09]
[1760789085084,4.59350012,185.9,185.87,2.09]
[1760789085285,4.31384621,185.89,185.87,2.09]
[1760789085486,4.59350012,185.9,185.87,2.09]
[1760789085787,4.31367604,185.89,185.87,2.09]
[1760789085987,4.59350012,185.9,185.87,6.9306]
[1760789086188,4.31367588,185.89,185.87,6.9306]
[1760789086388,2.76,185.9,185.87,6.9306]
[1760789086588,4.31329398,185.89,185.87,6.9306]
[1760789086892,2.76,185.9,185.87,6.9306]
[1760789087089,4.31329398,185.89,185.87,6.9306]
[1760789087389,2.76,185.9,185.87,6.9306]
[1760789087594,4.3129411,185.89,185.87,6.9306]
[1760789087795,2.76,185.9,185.87,6.9306]
[1760789088095,4.31294167,185.89,185.87,6.9306]
[1760789088292,2.76,185.9,185.87,6.9306]
[1760789088491,4.31261812,185.89,185.87,6.9306]
[1760789088691,1.83350012,185.92,185.87,4.8406]
[1760789088892,2.6,185.9,185.87,4.8406]
[1760789089094,4.31261796,185.89,185.87,6.9506]
[1760789089292,2.6,185.9,185.87,6.9506]
[1760789089494,4.31232081,185.89,185.87,4.8406]
[1760789089694,2.6,185.91,185.88,6.9504]
[1760789089898,4.31231894,185.9,185.88,6.9504]
[1760789090099,4.31231894,185.89,185.88,6.9504]
[1760789090794,2.6,185.93,185.9,6.95]
[1760789090996,4.31154696,185.92,185.91,2.11]
[1760789091298,1.83350012,185.94,185.91,2.11]
[1760789091499,4.31026175,185.93,185.91,2.11]
[1760789091799,2.6,185.95,185.92,2.11]
[1760789092001,4.31014514,185.94,185.92,2.11]
[1760789092300,2.6,185.95,185.92,2.11]
[1760789092599,4.30874555,185.94,185.92,2.11]
[1760789092794,2.6,185.95,185.92,2.11]
[1760789092992,4.30874555,185.94,185.92,6.9493]
[1760789093198,2.6,185.95,185.92,6.9493]
[1760789093797,1.83350012,185.98,185.92,6.9493]
[1760789094004,2.6,185.96,185.93,2.11]
[1760789095602,4.30459529,185.95,185.93,2.11]
[1760789095801,4.30459529,185.95,185.92,4.8393]
[1760789095802,5.02764651,186.0,185.92,1.83350012]
[1760789096103,4.30438738,185.99,185.93,2.11]
[1760789096298,2.6,186.01,185.93,2.11]
[1760789096497,4.30162151,186.0,185.94,1.83350012]
[1760789096804,2.6,186.01,185.95,2.11]
[1760789097306,2.6,186.05,185.95,2.11]
[1760789097507,1.83350012,186.03,185.97,2.11]
[1760789097701,4.29836746,186.02,185.97,2.11]
[1760789097895,1.83350012,186.03,185.97,2.11]
[1760789098099,4.43350012,186.05,185.99,2.11]
[1760789099204,2.6,186.08,186.03,2.11]
[1760789099501,2.6,186.11,186.03,2.11]
[1760789100309,2.6,186.15,186.07,6.9453]
[1760789100502,2.6,186.13,186.07,6.9453]
[1760789100703,2.6,186.13,186.07,2.11]
[1760789101801,2.6,186.13,186.04,2.85755929]
[1760789102002,2.6,186.13,186.04,44.68]
[1760789102705,2.6,186.13,186.05,6.946]
[1760789105210,2.6,186.13,186.07,4.8355]
[1760789106605,7.69105929,186.16,186.05,6.9461]
[1760789106804,9.30100465,186.15,186.05,6.9461]
[1760789107104,2.61,186.13,186.05,6.9461]
[1760789107311,2.61,186.11,186.05,6.9461]
[1760789111409,2.61,186.09,186.05,6.9461]
[1760789111605,2.61,186.08,186.05,2.11]
[1760789113606,4.8345,186.12,186.04,44.66]
[1760789113815,2.61,186.1,186.04,44.66]
[1760789114013,2.61,186.08,186.04,46.75]
[1760789114213,2.61,186.11,186.04,46.75]
[1760789114408,9.30081896,186.1,186.04,46.75]
[1760789114611,4.26778773,186.09,186.04,46.75]
[1760789114813,2.61,186.08,186.04,46.75]
[1760789115011,4.8345,186.12,186.04,46.75]
[1760789115211,2.61,186.1,186.04,46.75]
[1760789115417,4.25811961,186.09,186.04,46.75]
[1760789115613,2.61,186.11,186.04,46.75]
[1760789115815,2.61,186.09,186.04,46.75]
[1760789116013,4.8345,186.12,186.04,46.75]
[1760789116315,2.67,186.1,186.04,46.75]
[1760789116516,2.67,186.08,186.04,46.75]
[1760789117708,2.67,186.08,186.04,44.66]
[1760789117905,2.67,186.08,186.05,2.09]
[1760789119718,2.67,186.11,186.05,2.09]
[1760789119916,9.29103222,186.1,186.05,2.09]
[1760789120216,2.67,186.11,186.05,2.09]
[1760789120418,9.29145315,186.1,186.05,2.09]
[1760789120619,4.25800757,186.09,186.04,44.66]
[1760789120820,2.67,186.11,186.05,2.09]
[1760789121019,9.29159072,186.1,186.06,2.09]
[1760789121219,2.67,186.1,186.05,4.8359]
[1760789121419,2.67,186.1,186.06,2.09]
[1760789121714,2.67,186.1,186.05,4.8359]
[1760789122314,2.67,186.1,186.06,2.09]
[1760789122718,2.67,186.1,186.06,4.8357]
[1760789122914,2.67,186.1,186.07,2.09]
[1760789123314,2.67,186.13,186.07,6.9254]
[1760789123514,11.96632674,186.12,186.08,2.09]
[1760789123711,2.67,186.15,186.09,2.09]
[1760789124023,9.29526297,186.14,186.09,2.09]
[1760789124212,11.96526297,186.13,186.09,2.09]
[1760789124415,2.67,186.15,186.09,2.09]
[1760789124610,2.67,186.13,186.09,2.09]
[1760789124817,2.67,186.15,186.09,2.09]
[1760789125013,9.29707032,186.14,186.09,6.9249]
[1760789125221,2.67,186.12,186.09,6.9249]
[1760789128121,4.26449084,186.11,186.09,4.8349]
[1760789128329,2.67,186.13,186.09,6.9249]
[1760789128525,11.97811332,186.12,186.09,6.9249]
[1760789128727,4.26594308,186.11,186.09,6.9249]
[1760789129020,2.67,186.12,186.09,6.9249]
[1760789129226,4.26594308,186.11,186.09,6.9249]
[1760789129418,4.26594308,186.11,186.08,44.64]
[1760789129419,5.02764651,186.15,186.08,44.64]
[1760789129614,14.3394459,186.14,186.08,44.64]
[1760789129823,2.67,186.12,186.04,44.62]
[1760789130020,2.67,186.1,186.04,44.62]
[1760789130223,2.67,186.08,186.04,46.71]
[1760789130421,2.67,186.08,186.05,2.09]
[1760789130728,2.85755929,186.11,186.02,72.46833492]
[1760789130918,4.8357,186.07,186.01,2.09]
[1760789131123,2.67,186.05,186.0,2.09]
[1760789131316,6.94060863,186.04,185.99,44.62]
[1760789131520,2.67,186.04,185.99,44.62]
[1760789131724,2.67,186.04,186.0,2.09]
[1760789131915,2.67,186.04,185.99,44.62]
[1760789132121,2.67,186.04,186.01,2.09]
[1760789133426,4.27922157,186.03,186.01,2.09]
[1760789133621,7.506,186.06,186.0,4.8372]
[1760789133826,12.00910221,186.05,185.99,44.62]
[1760789134022,2.67,186.02,185.99,44.62]
[1760789134222,4.2833041,186.01,185.99,44.62]
[1760789134422,2.67,186.05,185.99,44.62]
[1760789134622,2.67,186.03,185.99,44.62]
[1760789134825,6.59341282,186.08,185.99,44.62]
[1760789134826,12.01636807,186.02,185.99,44.62]
[1760789135127,6.95330427,186.01,185.99,44.62]
[1760789135427,9.86384651,186.05,185.99,46.71]
[1760789135428,4.28330427,186.0,185.99,46.71]
[1760789135726,2.67,186.04,186.0,2.09]
[1760789135921,9.3541283,186.03,186.0,2.09]
[1760789136119,9.3541283,186.02,186.0,2.09]
[1760789136321,4.28690623,186.01,186.0,2.09]
[1760789137027,2.67,186.04,186.0,2.09]
[1760789137226,9.35977251,186.03,186.0,2.09]
[1760789137423,4.28955007,186.02,186.0,2.09]
[1760789137630,2.67,186.04,186.0,2.09]
[1760789137925,9.36526275,186.03,186.0,2.09]
[1760789138125,5.07321531,186.02,186.0,2.09]
[1760789138427,4.29212211,186.01,186.0,2.09]
[1760789139026,5.00069987,186.08,186.01,2.09]
[1760789139221,17.04078169,186.07,186.03,2.09]
[1760789139426,9.37008182,186.06,186.04,2.09]
[1760789139731,4.29435885,186.05,186.04,2.09]
[1760789142429,2.67,186.09,186.05,6.926]
[1760789142617,9.25671019,186.08,186.05,6.926]
[1760789142821,4.30349395,186.07,186.05,6.926]
[1760789143022,4.30349395,186.06,186.05,9.78355929]
[1760789143626,6.97349395,186.06,186.03,49.4566]
[1760789143826,4.30349395,186.05,186.03,49.4566]
[1760789144026,4.30349395,186.04,186.03,49.4566]
[1760789147529,4.30349395,186.04,186.03,44.62]
[1760789154548,4.30349395,186.04,185.99,9.78515929]
[1760789154840,6.59341282,186.09,186.0,44.62]
[1760789154841,7.09349395,186.03,186.0,44.62]
[1760789155036,7.09349395,186.02,186.0,44.62]
[1760789155339,2.79,186.02,186.0,44.62]
[1760789156146,4.31823738,186.01,186.0,44.62]